[Event "FIDE WCCC Open-12 2024"]
[Site "Montesilvano"]
[Date "2024.11.18"]
[Round "2.39"]
[White "Leht, Karl Samuel"]
[Black "Skytte, Robert"]
[Result "1/2-1/2"]
[ECO "D32"]
[WhiteElo "1701"]
[BlackElo "1925"]
[PlyCount "51"]
[EventDate "2024.11.18"]
[EventType "swiss"]
[EventCountry "ITA"]
[TimeControl "5400+30"]

1. d4 {[%emt 0:00:04]} d5 {[%emt 0:00:05]} 2. c4 {[%emt 0:00:07]} e6 {[%emt 0:00:04]} 3. Nf3 {[%emt 0:00:05]} Nf6 {[%emt 0:00:07]} 4. Bg5 {[%emt 0:00:11]} c5 {[%emt 0:02:26]} 5. cxd5 {[%emt 0:00:10]} exd5 {[%emt 0:00:10]} 6. Nc3 {[%emt 0:00:06]} Be6 {[%emt 0:00:42]} 7. e3 {[%emt 0:00:19]} a6 {[%emt 0:03:28]} 8. Be2 {[%emt 0:06:09]} Nbd7 {[%emt 0:01:52]} 9. O-O {[%emt 0:03:09]} Be7 {[%emt 0:00:42]} 10. Rc1 {[%emt 0:05:15]} O-O {[%emt 0:00:23]} 11. a4 {[%emt 0:02:38]} Qb6 {[%emt 0:03:23]} 12. Ne5 {[%emt 0:06:04]} Rfd8 {[%emt 0:12:25]} 13. f4 {[%emt 0:15:14]} Bf5 {[%emt 0:04:35]} 14. Bf3 {[%emt 0:07:08]} cxd4 {[%emt 0:05:41]} 15. exd4 {[%emt 0:01:03]} Qxb2 {[%emt 0:04:54]} 16. Bxd5 {[%emt 0:15:30]} Nxd5 {[%emt 0:05:00]} 17. Nxd5 {[%emt 0:00:58]} Bxg5 {[%emt 0:00:24]} 18. fxg5 {[%emt 0:00:25]} Nxe5 {[%emt 0:01:14]} 19. Ne7+ {[%emt 0:00:34]} Kf8 {[%emt 0:06:51]} 20. Nxf5 {[%emt 0:02:00]} Nc6 {[%emt 0:10:12]} 21. Qh5 {[%emt 0:09:32]} Kg8 {[%emt 0:11:27]} 22. Ne7+ {[%emt 0:02:57]} Nxe7 {[%emt 0:01:20]} 23. Qxf7+ {[%emt 0:00:09]} Kh8 {[%emt 0:00:03]} 24. Qxe7 {[%emt 0:00:16]} Qxd4+ {[%emt 0:00:03]} 25. Kh1 {[%emt 0:00:19]} b5 {[%emt 0:07:48]} 26. axb5 {[%emt 0:16:57]} 1/2-1/2

[Event "FIDE WCCC Open-12 2024"]
[Site "Montesilvano"]
[Date "2024.11.18"]
[Round "2.40"]
[White "Gazzato, Nicolo`"]
[Black "Son, Juwon"]
[Result "1-0"]
[ECO "B31"]
[WhiteElo "1868"]
[BlackElo "1448"]
[PlyCount "101"]
[EventDate "2024.11.18"]
[EventType "swiss"]
[EventCountry "ITA"]
[TimeControl "5400+30"]

1. e4 {[%emt 0:00:04]} c5 {[%emt 0:00:01]} 2. Nf3 {[%emt 0:00:19]} Nc6 {[%emt 0:00:04]} 3. Bb5 {[%emt 0:00:04]} g6 {[%emt 0:00:03]} 4. O-O {[%emt 0:00:43]} Bg7 {[%emt 0:00:08]} 5. c3 {[%emt 0:00:14]} Nf6 {[%emt 0:00:15]} 6. Qe2 {[%emt 0:00:43]} O-O {[%emt 0:02:16]} 7. Rd1 {[%emt 0:10:43]} d5 {[%emt 0:02:41]} 8. e5 {[%emt 0:01:47]} Ng4 {[%emt 0:03:31]} 9. d4 {[%emt 0:04:12]} cxd4 {[%emt 0:04:37]} 10. cxd4 {[%emt 0:00:53]} Qb6 {[%emt 0:00:29]} 11. Nc3 {[%emt 0:03:42]} a6 {[%emt 0:16:06]} 12. Ba4 {[%emt 0:01:12]} Rd8 {[%emt 0:03:46]} 13. Bb3 {[%emt 0:03:31]} Be6 {[%emt 0:00:59]} 14. Na4 {[%emt 0:04:48]} Qc7 {[%emt 0:10:51]} 15. Ng5 {[%emt 0:18:06]} Bf5 {[%emt 0:12:08]} 16. Nc3 {[%emt 0:01:53]} Nxd4 {[%emt 0:14:17]} 17. Rxd4 {[%emt 0:00:22]} Bxe5 {[%emt 0:11:47]} 18. Rxd5 {[%emt 0:08:03]} Bxc3 {[%emt 0:01:09]} 19. Rxd8+ {[%emt 0:02:09]} Rxd8 {[%emt 0:01:21]} 20. g3 {[%emt 0:01:26]} Qe5 {[%emt 0:06:46]} 21. Qxe5 {[%emt 0:00:49]} Bxe5 {[%emt 0:00:15]} 22. Nxf7 {[%emt 0:00:25]} Rd3 {[%emt 0:01:37]} 23. Nxe5+ {[%emt 0:00:19]} Rxb3 {[%emt 0:00:15]} 24. Nxg4 {[%emt 0:00:13]} Rd3 {[%emt 0:00:17]} 25. Nh6+ {[%emt 0:00:59]} Kg7 {[%emt 0:00:06]} 26. Nxf5+ {[%emt 0:00:05]} gxf5 {[%emt 0:00:01]} 27. Bf4 {[%emt 0:00:20]} Kf6 {[%emt 0:00:23]} 28. Re1 {[%emt 0:00:04]} Rd5 {[%emt 0:00:16]} 29. h4 {[%emt 0:00:14]} e5 {[%emt 0:00:23]} 30. Bg5+ {[%emt 0:00:19]} Kg6 {[%emt 0:00:05]} 31. Be3 {[%emt 0:00:15]} e4 {[%emt 0:00:49]} 32. Rc1 {[%emt 0:00:15]} Rd7 {[%emt 0:01:13]} 33. Rc8 {[%emt 0:00:09]} Rd1+ {[%emt 0:00:17]} 34. Kg2 {[%emt 0:00:06]} Ra1 {[%emt 0:00:15]} 35. a3 {[%emt 0:00:27]} Ra2 {[%emt 0:00:11]} 36. Rc2 {[%emt 0:00:09]} Ra1 {[%emt 0:00:28]} 37. Bc1 {[%emt 0:00:19]} Kf6 {[%emt 0:00:26]} 38. Kf1 {[%emt 0:00:19]} Ke5 {[%emt 0:00:15]} 39. Ke2 {[%emt 0:00:06]} b5 {[%emt 0:01:09]} 40. Kd2 {[%emt 0:02:46]} f4 {[%emt 0:00:45]} 41. gxf4+ {[%emt 0:00:32]} Kxf4 {[%emt 0:00:13]} 42. Rc8 {[%emt 0:00:59]} Kg4 {[%emt 0:00:51]} 43. Kc2 {[%emt 0:00:16]} Kxh4 {[%emt 0:00:35]} 44. b3 {[%emt 0:00:13]} Ra2+ {[%emt 0:00:27]} 45. Bb2 {[%emt 0:00:03]} Kg4 {[%emt 0:00:36]} 46. Kb1 {[%emt 0:00:02]} Rxb2+ {[%emt 0:00:15]} 47. Kxb2 {[%emt 0:00:01]} h5 {[%emt 0:00:18]} 48. Re8 {[%emt 0:00:31]} Kf3 {[%emt 0:00:16]} 49. Rf8+ {[%emt 0:00:48]} Kg4 {[%emt 0:00:08]} 50. Kc3 {[%emt 0:00:08]} h4 {[%emt 0:00:15]} 51. Kd4 {[%emt 0:00:08]} 1-0

[Event "FIDE WCCC Open-12 2024"]
[Site "Montesilvano"]
[Date "2024.11.18"]
[Round "2.41"]
[White "Torres Rebolledo, Alvaro"]
[Black "Stefanov, Stefan"]
[Result "1-0"]
[ECO "B12"]
[WhiteElo "2216"]
[BlackElo "1478"]
[PlyCount "37"]
[EventDate "2024.11.18"]
[EventType "swiss"]
[EventCountry "ITA"]
[TimeControl "5400+30"]

1. e4 {[%emt 0:00:51]} c6 {[%emt 0:00:06]} 2. d4 {[%emt 0:00:04]} d5 {[%emt 0:00:05]} 3. e5 {[%emt 0:00:04]} Bf5 {[%emt 0:00:04]} 4. Nf3 {[%emt 0:00:07]} e6 {[%emt 0:00:12]} 5. Be2 {[%emt 0:00:05]} Nd7 {[%emt 0:00:18]} 6. c3 {[%emt 0:00:16]} Ne7 {[%emt 0:00:32]} 7. Nh4 {[%emt 0:00:16]} Qc7 {[%emt 0:01:44]} 8. Nxf5 {[%emt 0:02:16]} Nxf5 {[%emt 0:00:12]} 9. Bd3 {[%emt 0:02:17]} Ne7 {[%emt 1:31:47]} 10. O-O {[%emt 0:05:50]} c5 {[%emt 0:00:00]} 11. Be3 {[%emt 0:05:57]} Nc6 {[%emt 0:00:00]} 12. f4 {[%emt 0:04:59]} cxd4 {[%emt 0:00:00]} 13. cxd4 {[%emt 0:00:24]} Nb4 {[%emt 0:00:00]} 14. f5 {[%emt 0:01:50]} Nxd3 {[%emt 0:00:00]} 15. Qxd3 {[%emt 0:07:23]} Qb6 {[%emt 0:00:00]} 16. Nc3 {[%emt 0:03:38]} Be7 {[%emt 0:00:00]} 17. fxe6 {[%emt 0:01:51]} fxe6 {[%emt 0:00:00]} 18. Rac1 {[%emt 0:02:40]} Qxb2 {[%emt 0:00:00]} 19. Nb5 {[%emt 0:01:32]} 1-0

[Event "FIDE WCCC Open-12 2024"]
[Site "Montesilvano"]
[Date "2024.11.18"]
[Round "2.42"]
[White "Boiko, Nazar"]
[Black "Sahbudak, Baris Cinar"]
[Result "1/2-1/2"]
[ECO "B21"]
[WhiteElo "1614"]
[BlackElo "2264"]
[PlyCount "90"]
[EventDate "2024.11.18"]
[EventType "swiss"]
[EventCountry "ITA"]
[TimeControl "5400+30"]

1. e4 {[%emt 0:00:01]} c5 {[%emt 0:00:08]} 2. d4 {[%emt 0:00:04]} cxd4 {[%emt 0:01:48]} 3. c3 {[%emt 0:00:10]} d3 {[%emt 0:01:36]} 4. c4 {[%emt 0:00:37]} Nc6 {[%emt 0:01:12]} 5. Nc3 {[%emt 0:00:20]} g6 {[%emt 0:00:48]} 6. Nf3 {[%emt 0:02:41]} Bg7 {[%emt 0:00:26]} 7. Bxd3 {[%emt 0:02:02]} d6 {[%emt 0:00:51]} 8. h3 {[%emt 0:05:08]} Nf6 {[%emt 0:01:27]} 9. O-O {[%emt 0:02:13]} O-O {[%emt 0:00:29]} 10. Bf4 {[%emt 0:10:09]} Be6 {[%emt 0:03:50]} 11. Qd2 {[%emt 0:11:26]} Rc8 {[%emt 0:04:19]} 12. Bh6 {[%emt 0:09:48]} Qd7 {[%emt 0:26:37]} 13. Bxg7 {[%emt 0:08:52]} Kxg7 {[%emt 0:00:08]} 14. Nd5 {[%emt 0:08:49]} Bxd5 {[%emt 0:11:55]} 15. exd5 {[%emt 0:01:28]} Nd8 {[%emt 0:01:04]} 16. Rac1 {[%emt 0:08:51]} e5 {[%emt 0:11:19]} 17. dxe6 {[%emt 0:02:24]} fxe6 {[%emt 0:04:27]} 18. Rfd1 {[%emt 0:08:02]} e5 {[%emt 0:04:25]} 19. Bb1 {[%emt 0:04:20]} Nf7 {[%emt 0:23:11]} 20. Ng5 {[%emt 0:03:28]} Nxg5 {[%emt 0:00:00]} 21. Qxg5 {[%emt 0:00:05]} Qe6 {[%emt 0:00:00]} 22. Qd2 {[%emt 0:01:52]} Rcd8 {[%emt 0:00:00]} 23. Qa5 {[%emt 0:01:10]} a6 {[%emt 0:00:00]} 24. Qb6 {[%emt 0:00:36]} Qe7 {[%emt 0:00:00]} 25. Rd2 {[%emt 0:01:30]} Rd7 {[%emt 0:00:00]} 26. Rcd1 {[%emt 0:00:19]} Rfd8 {[%emt 0:00:00]} 27. Bc2 {[%emt 0:00:40]} d5 {[%emt 0:00:00]} 28. cxd5 {[%emt 0:00:55]} Rxd5 {[%emt 0:00:00]} 29. Rxd5 {[%emt 0:00:06]} Rxd5 {[%emt 0:00:00]} 30. Rxd5 {[%emt 0:00:19]} Nxd5 {[%emt 0:00:00]} 31. Qb3 {[%emt 0:00:42]} Nf4 {[%emt 0:00:00]} 32. Be4 {[%emt 0:01:06]} b5 {[%emt 0:00:00]} 33. Qc2 {[%emt 0:01:16]} Qb4 {[%emt 0:00:20]} 34. Qb1 {[%emt 0:05:22]} Qd2 {[%emt 0:01:10]} 35. Bb7 {[%emt 0:00:33]} a5 {[%emt 0:00:55]} 36. Ba6 {[%emt 0:00:18]} Ne2+ {[%emt 0:01:39]} 37. Kh1 {[%emt 0:00:04]} Nd4 {[%emt 0:00:44]} 38. Kg1 {[%emt 0:00:34]} e4 {[%emt 0:01:27]} 39. Qxe4 {[%emt 0:00:58]} Ne2+ {[%emt 0:02:30]} 40. Kh2 {[%emt 0:00:11]} Qd6+ {[%emt 0:00:40]} 41. g3 {[%emt 0:00:17]} Nxg3 {[%emt 0:01:03]} 42. fxg3 {[%emt 0:00:11]} Qxa6 {[%emt 0:00:05]} 43. Qe7+ {[%emt 0:00:22]} Kg8 {[%emt 0:00:39]} 44. Qe8+ {[%emt 0:00:11]} Kg7 {[%emt 0:00:02]} 45. Qe7+ {[%emt 0:00:06]} Kg8 {[%emt 0:00:01]} 1/2-1/2

[Event "FIDE WCCC Open-12 2024"]
[Site "Montesilvano"]
[Date "2024.11.18"]
[Round "2.43"]
[White "Guo, Ethan"]
[Black "Krasniqi, Troi"]
[Result "1-0"]
[ECO "B38"]
[WhiteElo "2157"]
[BlackElo "1610"]
[PlyCount "55"]
[EventDate "2024.11.18"]
[EventType "swiss"]
[EventCountry "ITA"]
[TimeControl "5400+30"]

1. e4 {[%emt 0:00:01]} c5 {[%emt 0:00:01]} 2. Nf3 {[%emt 0:00:07]} d6 {[%emt 0:00:05]} 3. d4 {[%emt 0:00:04]} cxd4 {[%emt 0:00:05]} 4. Nxd4 {[%emt 0:00:05]} g6 {[%emt 0:00:09]} 5. c4 {[%emt 0:00:39]} Bg7 {[%emt 0:00:11]} 6. Nc3 {[%emt 0:00:13]} Nf6 {[%emt 0:00:31]} 7. Be2 {[%emt 0:00:08]} O-O {[%emt 0:00:07]} 8. O-O {[%emt 0:00:13]} Bd7 {[%emt 0:00:27]} 9. Be3 {[%emt 0:00:21]} Nc6 {[%emt 0:01:58]} 10. Rc1 {[%emt 0:07:10]} Rc8 {[%emt 0:04:30]} 11. f3 {[%emt 0:02:01]} a6 {[%emt 0:03:44]} 12. Qd2 {[%emt 0:01:49]} Nxd4 {[%emt 0:07:52]} 13. Bxd4 {[%emt 0:00:38]} Re8 {[%emt 0:12:58]} 14. b4 {[%emt 0:04:26]} Nh5 {[%emt 0:09:30]} 15. Be3 {[%emt 0:01:12]} Nf6 {[%emt 0:02:58]} 16. Rfd1 {[%emt 0:03:47]} b6 {[%emt 0:07:59]} 17. Bg5 {[%emt 0:12:51]} Bc6 {[%emt 0:08:03]} 18. Qe3 {[%emt 0:04:07]} Qc7 {[%emt 0:06:03]} 19. b5 {[%emt 0:01:32]} axb5 {[%emt 0:01:43]} 20. cxb5 {[%emt 0:00:09]} Ba8 {[%emt 0:00:37]} 21. Na4 {[%emt 0:04:06]} Qa7 {[%emt 0:01:29]} 22. Rxc8 {[%emt 0:00:11]} Rxc8 {[%emt 0:00:07]} 23. Nxb6 {[%emt 0:00:05]} Rc5 {[%emt 0:04:47]} 24. Qxc5 {[%emt 0:06:16]} dxc5 {[%emt 0:26:36]} 25. Rd8+ {[%emt 0:00:06]} Bf8 {[%emt 0:00:00]} 26. Bh6 {[%emt 0:00:10]} Nd7 {[%emt 0:00:00]} 27. Nxd7 {[%emt 0:00:11]} c4+ {[%emt 0:01:30]} 28. b6 {[%emt 0:00:09]} 1-0

[Event "FIDE WCCC Open-12 2024"]
[Site "Montesilvano"]
[Date "2024.11.18"]
[Round "2.44"]
[White "Birmenko, Nikolay"]
[Black "To, Nam Long"]
[Result "1-0"]
[ECO "C41"]
[WhiteElo "2084"]
[BlackElo "1608"]
[PlyCount "61"]
[EventDate "2024.11.18"]
[EventType "swiss"]
[EventCountry "ITA"]
[TimeControl "5400+30"]

1. e4 {[%emt 0:00:03]} d6 {[%emt 0:00:16]} 2. d4 {[%emt 0:00:11]} Nf6 {[%emt 0:00:06]} 3. Nc3 {[%emt 0:00:07]} e5 {[%emt 0:00:09]} 4. Nf3 {[%emt 0:00:19]} Nbd7 {[%emt 0:00:28]} 5. Rg1 {[%emt 0:00:29]} Be7 {[%emt 0:03:04]} 6. g4 {[%emt 0:00:31]} h6 {[%emt 0:02:15]} 7. h4 {[%emt 0:00:22]} g6 {[%emt 0:04:02]} 8. Be3 {[%emt 0:02:52]} c6 {[%emt 0:04:37]} 9. Qd2 {[%emt 0:03:09]} h5 {[%emt 0:03:26]} 10. gxh5 {[%emt 0:00:10]} Nxh5 {[%emt 0:00:18]} 11. O-O-O {[%emt 0:03:04]} Qc7 {[%emt 0:08:34]} 12. Bc4 {[%emt 0:02:39]} Ndf6 {[%emt 0:03:55]} 13. dxe5 {[%emt 0:02:10]} dxe5 {[%emt 0:01:27]} 14. Ng5 {[%emt 0:01:49]} Rf8 {[%emt 0:02:18]} 15. f3 {[%emt 0:00:43]} Bd7 {[%emt 0:04:11]} 16. Qg2 {[%emt 0:00:31]} O-O-O {[%emt 0:05:46]} 17. Nxf7 {[%emt 0:01:15]} Rde8 {[%emt 0:00:55]} 18. Ng5 {[%emt 0:06:14]} a5 {[%emt 0:02:51]} 19. Rxd7 {[%emt 0:03:01]} Nxd7 {[%emt 0:01:43]} 20. Ne6 {[%emt 0:00:13]} Qd6 {[%emt 0:01:13]} 21. Rd1 {[%emt 0:01:58]} Qb4 {[%emt 0:01:10]} 22. Rxd7 {[%emt 0:04:36]} Kxd7 {[%emt 0:07:02]} 23. Qh3 {[%emt 0:03:02]} Rf5 {[%emt 0:01:35]} 24. Bb3 {[%emt 0:00:36]} a4 {[%emt 0:06:55]} 25. exf5 {[%emt 0:06:48]} axb3 {[%emt 0:10:28]} 26. fxg6 {[%emt 0:00:19]} Nf6 {[%emt 0:02:09]} 27. a3 {[%emt 0:01:13]} Qd6 {[%emt 0:04:46]} 28. Na4 {[%emt 0:02:45]} Nd5 {[%emt 0:05:52]} 29. Ng7+ {[%emt 0:03:53]} Kd8 {[%emt 0:00:26]} 30. Nb6 {[%emt 0:01:30]} Bg5 {[%emt 0:03:03]} 31. Qc8+ {[%emt 0:01:26]} 1-0

[Event "FIDE WCCC Open-12 2024"]
[Site "Montesilvano"]
[Date "2024.11.18"]
[Round "2.45"]
[White "Ivarlac, Vladislav"]
[Black "Mihajlovic, Stefan"]
[Result "1-0"]
[ECO "D02"]
[WhiteElo "1867"]
[BlackElo "1594"]
[PlyCount "43"]
[EventDate "2024.11.18"]
[EventType "swiss"]
[EventCountry "ITA"]
[TimeControl "5400+30"]

1. Nf3 {[%emt 0:00:02]} Nc6 {[%emt 0:00:47]} 2. g3 {[%emt 0:00:06]} d5 {[%emt 0:00:58]} 3. d4 {[%emt 0:00:23]} Nf6 {[%emt 0:01:29]} 4. Bg2 {[%emt 0:00:09]} Bg4 {[%emt 0:00:36]} 5. Ne5 {[%emt 0:00:16]} Bd7 {[%emt 0:01:39]} 6. O-O {[%emt 0:00:39]} e6 {[%emt 0:02:56]} 7. Nxd7 {[%emt 0:02:45]} Qxd7 {[%emt 0:03:52]} 8. c3 {[%emt 0:01:16]} h6 {[%emt 0:01:46]} 9. Nd2 {[%emt 0:00:13]} e5 {[%emt 0:00:56]} 10. dxe5 {[%emt 0:01:21]} Nxe5 {[%emt 0:00:10]} 11. e4 {[%emt 0:00:48]} O-O-O {[%emt 0:01:57]} 12. exd5 {[%emt 0:01:59]} Nxd5 {[%emt 0:00:27]} 13. Nf3 {[%emt 0:01:04]} Qf5 {[%emt 0:04:13]} 14. Nxe5 {[%emt 0:01:34]} Qxe5 {[%emt 0:00:19]} 15. c4 {[%emt 0:01:44]} Nb4 {[%emt 0:02:44]} 16. Bxb7+ {[%emt 0:00:25]} Kxb7 {[%emt 0:00:21]} 17. Qxd8 {[%emt 0:00:06]} h5 {[%emt 0:01:01]} 18. Bf4 {[%emt 0:00:07]} Qa5 {[%emt 0:01:13]} 19. a3 {[%emt 0:00:23]} Na6 {[%emt 0:00:25]} 20. b4 {[%emt 0:00:09]} Qb6 {[%emt 0:00:32]} 21. c5 {[%emt 0:00:10]} Qc6 {[%emt 0:00:18]} 22. b5 {[%emt 0:00:11]} 1-0

[Event "FIDE WCCC Open-12 2024"]
[Site "Montesilvano"]
[Date "2024.11.18"]
[Round "2.46"]
[White "Berishvili, Davit"]
[Black "Anagnostopoulos, Panagiotis"]
[Result "0-1"]
[ECO "E62"]
[WhiteElo "1578"]
[BlackElo "1848"]
[PlyCount "108"]
[EventDate "2024.11.18"]
[EventType "swiss"]
[EventCountry "ITA"]
[TimeControl "5400+30"]

1. d4 Nf6 {[%emt 0:00:04]} 2. c4 {[%emt 0:00:04]} g6 {[%emt 0:00:08]} 3. Nf3 {[%emt 0:00:04]} Bg7 {[%emt 0:00:05]} 4. g3 {[%emt 0:00:04]} O-O {[%emt 0:00:09]} 5. Bg2 {[%emt 0:00:02]} d6 {[%emt 0:00:08]} 6. O-O {[%emt 0:00:06]} Nc6 {[%emt 0:00:20]} 7. Nc3 {[%emt 0:00:16]} e5 {[%emt 0:00:13]} 8. d5 {[%emt 0:00:10]} Ne7 {[%emt 0:00:21]} 9. e4 {[%emt 0:00:05]} h6 {[%emt 0:00:45]} 10. h3 {[%emt 0:00:22]} Nd7 {[%emt 0:00:45]} 11. Nh2 {[%emt 0:01:05]} a5 {[%emt 0:01:17]} 12. Ng4 {[%emt 0:01:22]} h5 {[%emt 0:00:52]} 13. Ne3 {[%emt 0:00:17]} Nc5 {[%emt 0:01:46]} 14. b3 {[%emt 0:03:35]} f5 {[%emt 0:04:02]} 15. Ba3 {[%emt 0:02:18]} f4 {[%emt 0:00:39]} 16. Bxc5 {[%emt 0:00:17]} dxc5 {[%emt 0:00:06]} 17. Nc2 {[%emt 0:00:07]} f3 {[%emt 0:00:59]} 18. Bxf3 {[%emt 0:00:11]} Bxh3 {[%emt 0:00:08]} 19. Bg2 {[%emt 0:00:07]} Bg4 {[%emt 0:00:45]} 20. f3 {[%emt 0:01:51]} Bc8 {[%emt 0:01:57]} 21. Qe2 {[%emt 0:06:18]} g5 {[%emt 0:02:06]} 22. Qe3 {[%emt 0:05:56]} Ng6 {[%emt 0:00:17]} 23. Qxc5 {[%emt 0:04:33]} h4 {[%emt 0:00:19]} 24. g4 {[%emt 0:01:06]} Nf4 {[%emt 0:00:58]} 25. Kh2 {[%emt 0:00:20]} Qf6 {[%emt 0:01:22]} 26. Qf2 {[%emt 0:02:49]} Rf7 {[%emt 0:03:35]} 27. Bh3 {[%emt 0:13:37]} Bf8 {[%emt 0:04:56]} 28. Ne2 {[%emt 0:12:45]} b6 {[%emt 0:01:51]} 29. Nxf4 {[%emt 0:02:38]} Qxf4+ {[%emt 0:00:03]} 30. Kh1 {[%emt 0:00:04]} a4 {[%emt 0:02:00]} 31. Qh2 {[%emt 0:01:07]} Qf6 {[%emt 0:00:50]} 32. b4 {[%emt 0:01:51]} Ba6 {[%emt 0:01:07]} 33. b5 {[%emt 0:01:53]} Bb7 {[%emt 0:00:08]} 34. a3 {[%emt 0:00:28]} Bc5 {[%emt 0:00:41]} 35. Qd2 {[%emt 0:05:05]} Raf8 {[%emt 0:01:06]} 36. Rab1 {[%emt 0:02:55]} Bc8 {[%emt 0:01:40]} 37. Nb4 {[%emt 0:00:59]} Bd7 {[%emt 0:00:36]} 38. Na6 {[%emt 0:00:21]} Bd6 {[%emt 0:00:33]} 39. Nb4 {[%emt 0:00:05]} Be8 {[%emt 0:00:30]} 40. Rb2 {[%emt 0:00:50]} Rg7 {[%emt 0:00:23]} 41. Qc2 {[%emt 0:00:25]} Qf4 {[%emt 0:00:45]} 42. Qe2 {[%emt 0:01:59]} Bg6 {[%emt 0:00:37]} 43. Rbb1 {[%emt 0:01:14]} Rgf7 {[%emt 0:00:31]} 44. Qe1 {[%emt 0:04:29]} Qf6 {[%emt 0:00:55]} 45. Qd2 {[%emt 0:00:18]} Qe7 {[%emt 0:00:59]} 46. Qc3 {[%emt 0:00:40]} Rf4 {[%emt 0:02:00]} 47. Kh2 {[%emt 0:00:46]} Qf6 {[%emt 0:00:44]} 48. Bg2 {[%emt 0:01:00]} h3 {[%emt 0:02:31]} 49. Bxh3 {[%emt 0:02:05]} Rxf3 {[%emt 0:00:06]} 50. Rxf3 {[%emt 0:00:12]} Qxf3 {[%emt 0:00:04]} 51. Qxf3 {[%emt 0:00:20]} Rxf3 {[%emt 0:00:04]} 52. Bg2 {[%emt 0:01:10]} Rxa3 {[%emt 0:00:11]} 53. Na6 {[%emt 0:00:55]} Ra2 {[%emt 0:00:12]} 54. Kg3 {[%emt 0:00:23]} Rxg2+ {[%emt 0:00:07]} 0-1

[Event "FIDE WCCC Open-12 2024"]
[Site "Montesilvano"]
[Date "2024.11.18"]
[Round "2.47"]
[White "Zutautas, Mantas"]
[Black "Konstantinides, Savvas"]
[Result "0-1"]
[ECO "D02"]
[WhiteElo "1540"]
[BlackElo "1839"]
[PlyCount "46"]
[EventDate "2024.11.18"]
[EventType "swiss"]
[EventCountry "ITA"]
[TimeControl "5400+30"]

1. d4 {[%emt 0:00:04]} Nf6 {[%emt 1:31:00]} 2. Nf3 {[%emt 0:00:15]} e6 {[%emt 0:00:00]} 3. Bf4 {[%emt 0:00:39]} d5 {[%emt 0:00:00]} 4. h3 {[%emt 0:00:23]} Bd6 {[%emt 0:00:00]} 5. Bxd6 {[%emt 0:00:07]} Qxd6 {[%emt 0:00:00]} 6. e3 {[%emt 0:00:19]} b6 {[%emt 0:00:00]} 7. c3 {[%emt 0:00:12]} Bb7 {[%emt 0:00:00]} 8. Bd3 {[%emt 0:00:43]} O-O {[%emt 0:00:00]} 9. Nbd2 {[%emt 0:00:57]} Nbd7 {[%emt 0:00:00]} 10. O-O {[%emt 0:00:43]} c5 {[%emt 0:00:00]} 11. Rc1 {[%emt 0:02:41]} e5 {[%emt 0:00:00]} 12. dxe5 {[%emt 0:01:27]} Nxe5 {[%emt 0:00:00]} 13. Nxe5 {[%emt 0:01:48]} Qxe5 {[%emt 0:00:00]} 14. Nf3 {[%emt 0:00:30]} Qe7 {[%emt 0:00:00]} 15. c4 {[%emt 0:02:48]} Rfd8 {[%emt 0:00:00]} 16. Qb3 {[%emt 0:02:20]} Rd6 {[%emt 0:00:00]} 17. Rfd1 {[%emt 0:03:15]} d4 {[%emt 0:00:00]} 18. exd4 {[%emt 0:02:18]} Bxf3 {[%emt 0:00:00]} 19. Re1 {[%emt 0:08:34]} Qd7 {[%emt 0:00:00]} 20. gxf3 {[%emt 0:10:16]} Rxd4 {[%emt 0:00:00]} 21. Re3 {[%emt 0:02:07]} Qxh3 {[%emt 0:00:00]} 22. Qb5 {[%emt 0:03:41]} Rh4 {[%emt 0:00:00]} 23. f4 {[%emt 0:04:02]} Qh1# {[%emt 0:00:00]} 0-1

[Event "FIDE WCCC Open-12 2024"]
[Site "Montesilvano"]
[Date "2024.11.18"]
[Round "2.48"]
[White "Kozhedub, Ivan"]
[Black "Wang, Yu-Chi Xavier"]
[Result "1-0"]
[ECO "C28"]
[WhiteElo "1826"]
[BlackElo "1543"]
[PlyCount "53"]
[EventDate "2024.11.18"]
[EventType "swiss"]
[EventCountry "ITA"]
[TimeControl "5400+30"]

1. e4 {[%emt 0:00:01]} e5 {[%emt 0:00:09]} 2. Nc3 {[%emt 0:00:04]} Nf6 {[%emt 0:00:26]} 3. Bc4 {[%emt 0:00:06]} Nc6 {[%emt 0:00:22]} 4. d3 {[%emt 0:00:08]} Na5 {[%emt 0:00:51]} 5. Nge2 {[%emt 0:01:02]} c6 {[%emt 0:01:49]} 6. Bg5 {[%emt 0:09:19]} Bc5 {[%emt 0:02:38]} 7. O-O {[%emt 0:01:28]} O-O {[%emt 0:02:41]} 8. Kh1 {[%emt 0:02:24]} Nxc4 {[%emt 0:05:20]} 9. dxc4 {[%emt 0:00:10]} d6 {[%emt 0:08:03]} 10. Qd3 {[%emt 0:05:47]} h6 {[%emt 0:04:09]} 11. Bh4 {[%emt 0:05:02]} g5 {[%emt 0:04:05]} 12. Bg3 {[%emt 0:00:09]} Nh7 {[%emt 0:09:55]} 13. Rad1 {[%emt 0:05:36]} f5 {[%emt 0:02:41]} 14. Bxe5 {[%emt 0:04:36]} fxe4 {[%emt 0:06:11]} 15. Nxe4 {[%emt 0:01:44]} Re8 {[%emt 0:08:27]} 16. Nf6+ {[%emt 0:00:39]} Nxf6 {[%emt 0:01:44]} 17. Qg6+ {[%emt 0:00:07]} Kf8 {[%emt 0:00:52]} 18. Bxf6 {[%emt 0:00:08]} Qd7 {[%emt 0:01:30]} 19. Qxh6+ {[%emt 0:00:37]} Kf7 {[%emt 0:01:00]} 20. Ng3 {[%emt 0:03:34]} Rg8 {[%emt 0:03:24]} 21. Bc3 {[%emt 0:04:55]} Qe6 {[%emt 0:01:08]} 22. Qh7+ {[%emt 0:00:04]} Kf8 {[%emt 0:00:40]} 23. Rde1 {[%emt 0:00:12]} Qf7 {[%emt 0:02:02]} 24. Qh6+ {[%emt 0:00:06]} Rg7 {[%emt 0:00:18]} 25. Bxg7+ {[%emt 0:00:05]} Qxg7 {[%emt 0:00:26]} 26. Re8+ {[%emt 0:00:06]} Kxe8 {[%emt 0:00:26]} 27. Qxg7 {[%emt 0:00:04]} 1-0